Workbook

Sheet About
B2: Data Logging is a feature in Kinetix 5x00 drives used to log up to 40,000 real-time data points from a single attribute or up to four attributes at rates as fast as the loop update of the drives of 125μs. See Knowledgebase article QA34226 for more details
B5: Revision 5, Feb 2023 - Support for FTLinx Gateway added
B8: License agreement
B9: IMPORTANT - READ CAREFULLY: This End-User License Agreement ("Agreement") is a legal contract between you ("Licensee" or "you") and Rockwell Automation Inc. ("Licensor") for the software product entitled "DataLoggingAquireData" (the "Software") which is being provided by Licensor to Licensee on a complimentary basis in "AS IS" condition for Licensee's internal use.
B11: BY SELECTING THE “I AGREE THE LICENSE” CHECKBOX BELOW, OR BY INSTALLING, COPYING, OR OTHERWISE USING THE SOFTWARE APPLICATION, YOU AGREE TO BE BOUND BY THE TERMS OF THIS AGREEMENT. IF YOU DO NOT AGREE TO THE TERMS OF THIS AGREEMENT, DO NOT INSTALL OR USE THE SOFTWARE APPLICATION.
B14: License Terms
B15: 1. License Grant. Licensor hereby grants to you, and by accepting this Agreement in a manner described above, you accept, a nonexclusive license to use the Software, provided in machine-readable, object-code form, only as authorized in this Agreement. Licensor further grants you the right to reproduce the Software solely for the purposes of your internal use of Software on computers owned, leased, or otherwise controlled by you. Any copies of the Software or any related user documentation shall include Licensor's copyright and other proprietary notices. You agree that you will not assign, sublicense, transfer, pledge, lease, rent, or share your rights under this Agreement. You agree that you may not reverse assemble, reverse compile or otherwise translate the Software.
B20: 2. Licensor's Rights. The Software and related user documentation are proprietary products of Licensor protected under U.S. copyright law. All right, title, and interest in and to the Software, including associated intellectual property rights, are and shall remain with Licensor. This Agreement does not convey to you an interest in or to the Software, but only a limited right of use revocable in accordance with the terms of this Agreement.
B23: 3. License Fees. The Software is provided without charge. Other fees are payable only as separately stipulated by Licensor and agreed to by you.
B24: 4. Term. This Agreement is effective upon the earlier of your acceptance of this Agreement as described above, and shall continue until terminated. You may terminate this Agreement at any time by returning the Software and all copies thereof and extracts therefrom to Licensor. Licensor may terminate this Agreement upon prior notice at any time. Upon such termination by Licensor, you agree to return to Licensor the Software and all copies and portions thereof.
B27: 5. No Warranties. The Software is provided "AS IS," without any representation or warranty whatsoever. LICENSOR DISCLAIMS ANY AND ALL WARRANTIES, WHETHER EXPRESS OR IMPLIED, INCLUDING, WITHOUT LIMITATION, ANY IMPLIED WARRANTIES OF MERCHANTABILITY OR FITNESS FOR A PARTICULAR PURPOSE. Licensee assumes the entire risk of using the Software. IN NO EVENT WILL LICENSOR BE LIABLE TO YOU FOR ANY CONSEQUENTIAL, INCIDENTAL OR SPECIAL DAMAGES, INCLUDING ANY LOST PROFITS OR LOST SAVINGS, EVEN IF A REPRESENTIVE OF LICENSOR HAS BEEN ADVISED OF THE POSSIBILITY OF SUCH DAMAGES, OR FOR ANY CLAIM BY ANY THIRD PARTY.
B31: 6. Governing Law. This Agreement shall be construed and governed in accordance with the laws of the State of Wisconsin.
B32: 7. No Waiver. The failure of either party to enforce any rights granted hereunder or to take action against the other party in the event of any breach hereunder shall not be deemed a waiver by that party as to subsequent enforcement of rights or subsequent actions in the event of future breaches.
B35: Accept Agreement: | E35: Yes | F35: <<<<<------ Select here!

Sheet DataLogging
A1: Data Logging Tool
A2: DDE Server | B2: RSLinx Classic
A3: TopicID | B3: PLC_KnxDataLogging | H3: Start RSLinx or
A4: Program Name | B4: P01_Motion | H4: FTLinx Gateway,
A5: AOI Tag Name | B5: DataLoggingAOI | H5: then click here:
A6: Data Source 0 Tag Name | B6: DataLog_Values00
A7: Data Source 1 Tag Name | B7: DataLog_Values01
A8: Data Source 2 Tag Name | B8: DataLog_Values02
A9: Data Source 3 Tag Name | B9: DataLog_Values03
A10: # of Datapoints | B10: 10000 | C10: data points
A11: Sampling Time | B11: 500 | C11: µs
A12: Data Source | B12: 434 | C12: 436 | D12: 366 | E12: 620
A13: Time | B13: Data Souce 0 Value | C13: Data Souce 1 Value | D13: Data Souce 2 Value | E13: Data Souce 3 Value
A14: 0
A15: =B11/1000000 -> 0.0005
A16: =A15+A$15 -> 0.001
A17: =A16+A$15 -> 0.0015
A18: 0.002
A19: 0.0025
A20: 0.003
A21: 0.0035
A22: 0.004
A23: 0.0045
A24: 0.005
A25: 0.0055
A26: 0.006
A27: 0.0065
A28: 0.007
A29: 0.0075
A30: 0.008
A31: 0.0085
A32: 0.009
A33: 0.0095
A34: 0.01
A35: 0.0105
A36: 0.011
A37: 0.0115
A38: 0.012
A39: 0.0125
A40: 0.013
A41: 0.0135
A42: 0.014
A43: 0.0145
A44: 0.015
A45: 0.0155
A46: 0.016
A47: 0.0165
A48: 0.017
A49: 0.0175
A50: 0.018
A51: 0.0185
A52: 0.019
A53: 0.0195
A54: 0.02
A55: 0.0205
A56: 0.021
A57: 0.0215
A58: 0.022
A59: 0.0225
A60: 0.023
A61: 0.0235
A62: 0.024
A63: 0.0245
A64: 0.025
A65: 0.0255
A66: 0.026
A67: 0.0265
A68: 0.027
A69: 0.0275
A70: 0.028
A71: 0.0285
A72: 0.029
A73: 0.0295
A74: 0.03
A75: 0.0305
A76: 0.031
A77: 0.0315
A78: 0.032
A79: 0.0325
A80: 0.033
A81: =A80+A$15 -> 0.0335
A82: 0.034
A83: 0.0345
A84: 0.035
A85: 0.0355
A86: 0.036
A87: 0.0365
A88: 0.037
A89: 0.0375
A90: 0.038
A91: 0.0385
A92: 0.039
A93: 0.0395
A94: 0.04
A95: 0.0405
A96: 0.041
A97: 0.0415
A98: 0.042
A99: 0.0425
A100: 0.043
A101: 0.0435
A102: 0.044
A103: 0.0445
A104: 0.045
A105: 0.0455
A106: 0.046
A107: 0.0465
A108: 0.047
A109: 0.0475
A110: 0.048
A111: 0.0485
A112: 0.049
A113: 0.0495
A114: 0.05
A115: 0.0505
A116: 0.051
A117: 0.0515
A118: 0.052
A119: 0.0525
A120: 0.053
A121: 0.0535
A122: 0.054
A123: 0.0545
A124: 0.055
A125: 0.0555
A126: 0.056
A127: 0.0565
A128: 0.057
A129: 0.0575
A130: 0.058
A131: 0.0585
A132: 0.059
A133: 0.0595
A134: 0.06
A135: 0.0605
A136: 0.061
A137: 0.0615
A138: 0.062
A139: 0.0625
A140: 0.063
A141: 0.0635
A142: 0.064
A143: 0.0645
A144: 0.065
A145: =A144+A$15 -> 0.0655
A146: 0.066
A147: 0.0665
A148: 0.067
A149: 0.0675
A150: 0.068
A151: 0.0685
A152: 0.069
A153: 0.0695
A154: 0.07
A155: 0.0705
A156: 0.071
A157: 0.0715
A158: 0.072
A159: 0.0725
A160: 0.073
A161: 0.0735
A162: 0.074
A163: 0.0745
A164: 0.075
A165: 0.0755
A166: 0.076
A167: 0.0765
A168: 0.077
A169: 0.0775
A170: 0.078
A171: 0.0785
A172: 0.079
A173: 0.0795
A174: 0.08
A175: 0.0805
A176: 0.081
A177: 0.0815
A178: 0.082
A179: 0.0825
A180: 0.083
A181: 0.0835
A182: 0.084
A183: 0.0845
A184: 0.085
A185: 0.0855
A186: 0.086
A187: 0.0865
A188: 0.087
A189: 0.0875
A190: 0.088
A191: 0.0885
A192: 0.089
A193: 0.0895
A194: 0.09
A195: 0.0905
A196: 0.091
A197: 0.0915
A198: 0.092
A199: 0.0925
A200: 0.093
... 39813 more rows

Sheet Reference Tag Name
O5: Note: All five of these tags must have the same scope (controller or program) for this spreadsheet to function properly.

Sheet Reference DDE TopicID
B2: RSLinx Classic:
B3: 1) DDE/ OPC Menu -> Topic Configuration
B4: 2) Create a new topic and name as desired
B5: 3) Select controller for data source
B36: FTLinx Gateway (v6.31 and after):
B37: Setup in FactoryTalk Administration Console
B38: 1) Open FT Administration Console, choose Local directory
B39: 2) Right click on Local (THIS COMPUTER) -> New Application
B40: 3) Give application a name and click OK
B58: 4) Right click on the application -> Add New Server
B59: -> Rockwell Automation Device Server (FactoryTalk Linx)
B77: 5) Click ok
B107: Create device shortcut, which is also the DDE topic
B108: 1) Double click on Communication setup
B109: 2) Add new device shortcut
B110: 3) Name shortcut - this is also the DDE topic name
B111: 4) Choose controller to be used
B112: 5) Click Apply in the Device Shortcuts area
B113: 6) Click Ok at bottom right
B152: Setup in FactoryTalk Linx Gateway
B153: 1) In Server Configuration, choose Select
B154: 2) Select the Local directory
B155: 3) Choose the application from the directory
B156: 4) Click OK
B185: 5) Disable the UA Server
B219: 6) Scroll down and enable DDE Interface
B220: Check that "Folders with scalar data" is selected
B221: 7) Click Apply
